{"text_format":"1","workbook":"xlsx","n_sheets":1,"sheets":["Einbringungsquote (aktuell J.)"],"not_rendered":{"charts":0,"images":0,"macros":1,"external_links":1,"defined_names":6,"comments":0,"pivot_tables":0},"unopened":[],"bounds":{"document_bytes":16777216,"sheet_cells":100000,"rows_first":2000,"rows_last":500,"rows_between":2000,"halvings":0,"cell_chars":16384,"cell_head_chars":4096},"cells_cut":0,"cells_raw":0,"read":"whole","date_system":"1900"}

{"sheet":"Einbringungsquote (aktuell J.)","index":0,"n_rows":90,"n_cols":6,"rows_kept":90,"cut":false,"hidden":false,"merged":[]}
[]
[]
[]
[]
[null,"Aufteilung eingebrachtes Vermögen nach Wertsteigerung /Wertverlust; Variante: strikt getrennte Bewertung von Grund und Haus"]
[]
[null,"Teilungsquoten für ehelichen Zugewinn:"]
[]
[null,"Mann",0.5]
[null,"Frau",{"$f":"1-C9","v":0.5}]
[]
[null,"Variante 1 (gemeinsame Bewertung Haus und Grund)",null,null,"Variante 2 (getrennte Bewertung Haus und Grund)"]
[]
[null,"ursprüngliche Werte",null,null,"ursprüngliche Werte"]
[null,"Geld eingebracht vom Mann oder Verwandten des Mannes",0,null,"Geld eingebracht vom Mann oder Verwandten des Mannes",{"$f":"C15","v":0}]
[null,"Grundstück eingebracht von Mann oder Verwandten des Mannes",0,null,"Grundstück eingebracht von Mann oder Verwandten des Mannes",{"$f":"C16","v":0}]
[null,"Geld eingebracht von Frau oder Verwandten der Frau",0,null,"Geld eingebracht von Frau oder Verwandten der Frau",0]
[null,"Grundstück eingebracht von Frau oder Verwandten der Frau",150000,null,"Grundstück eingebracht von Frau oder Verwandten der Frau",150000]
[null,"Hauserrichtungskosten ohne Grundstück",450000,null,"Hauserrichtungskosten ohne Grundstück",450000]
[null,"Hauserrichtungskosten mit Grundstück",{"$f":"C19+C16+C18","v":600000},null,"Hauserrichtungskosten mit Grundstück",600000]
[]
[]
[null,"Aktuelle Werte",null,null,"Aktuelle Werte"]
[null,"Haus mit Grundstück aktueller Wert",1200000,null,"Haus mit Grundstück aktueller Wert",1200000]
[null,"Haus ohne Grundstück aktueller Wert",800000,null,"Haus ohne Grundstück aktueller Wert",800000]
[null,"unbebautes Grundstück ohne Haus aktueller Wert",400000,null,"unbebautes Grundstück ohne Haus aktueller Wert",400000]
[null,"Schulden für Haus",-150000,null,"Schulden für Haus",-150000]
[]
[null,"Wertzuwachs nur Grund in Prozenten",{"$f":"IF(C15+C18=0,1,C26/(C16+C18))","v":2.6666666666666665},null,"Wertzuwachs nur Grund in Prozenten",{"$f":"C29","v":2.6666666666666665}]
[null,"Wertzuwachs nur Haus in Prozenten",{"$f":"C25/C19","v":1.7777777777777777},null,"Wertzuwachs nur Haus in Prozenten",{"$f":"C30","v":1.7777777777777777}]
[null,"Wertzuwachs Haus und Grund gemeinsam in Prozenten",{"$f":"C24/C20","v":2},null,"Wertzuwachs Haus und Grund gemeinsam in Prozenten",{"$f":"C31","v":2}]
[]
[null,"Auf- oder Abwertung der eingebrachten Beträge:",null,null,"Auf- oder Abwertung der eingebrachten Beträge:"]
[]
[null,"Hyperocha",null,null,"Hyperocha",{"$f":"F24+F27","v":1050000}]
[null,"Vorwegzuteilung an Mann für eingebrachtes Vermögen",{"$f":"(C15+C16)/C20*(C24+C27)","v":0},null,"Vorwegzuteilung an Mann für eingebrachtes Vermögen",{"$f":"(C26*C41)+C15*C30","v":0}]
[null,"Vorwegzuteilung an Frau für eingebrachtes Vermögen",{"$f":"(C17+C18)/C20*C24","v":300000},null,"Vorwegzuteilung an Frau für eingebrachtes Vermögen",{"$f":"(C26*C42)+C17*C30","v":400000}]
[]
[null,"Teilungsquoten:",null,null,"Teilungsquoten:"]
[]
[null,"Anteil Mann Grund",{"$f":"C16/(C16+C18)","v":0},null,"Anteil Mann Grund",{"$f":"C41","v":0}]
[null,"Anteil Frau Grund",{"$f":"C18/(C16+C18)","v":1},null,"Anteil Frau Grund",{"$f":"C42","v":1}]
[null,"Anteil Mann Haus Errichtungskosten",{"$f":"C15/C19","v":0},null,"Anteil Mann Haus Errichtungskosten",0]
[null,"Anteil Frau Haus Errichtungskosten",{"$f":"C17/(C19)","v":0},null,"Anteil Frau Haus Errichtungskosten",0]
[]
[null,"Anteil Mann an Gesamtkosten (Grund UND Haus)",{"$f":"(BC15+C16)/C20","v":0}]
[null,"Anteil Frau an Gesamtkosten (Grund UND Haus)",{"$f":"(C18+C17)/C20","v":0.25}]
[]
[null,"aufzuteilen",{"$f":"C24+C27-C36-C37","v":750000},null,"aufzuteilen",{"$f":"F35-F36-F37","v":650000}]
[null,"Aufteilungsanteil Mann",{"$f":"$C$49*$C$9","v":375000},null,"Aufteilungsanteil Mann",{"$f":"$F$49*$C$9","v":325000}]
[null,"Aufteilungsanteil Frau",{"$f":"$C$49*$C$10","v":375000},null,"Aufteilungsanteil Frau",{"$f":"$F$49*$C$10","v":325000}]
[]
[null,"Mann übernimmt Haus und Schulden:",null,null,"Mann übernimmt Haus und Schulden:"]
[]
[null,"Ausgleichszahlung an Frau",{"$f":"C51+C37","v":675000},null,"Ausgleichszahlung an Frau",{"$f":"F37+F51","v":725000}]
[]
[null,"Frau übernimmt Haus und Schulden:",null,null,"Frau übernimmt Haus und Schulden:"]
[]
[null,"Ausgleichszahlung an Mann",{"$f":"$C$36+$C$50","v":375000},null,"Ausgleichszahlung an Mann",{"$f":"F51+F36","v":325000}]
[]
[null,"Kontrollrechnung Mann:",null,null,"Kontrollrechnung Mann:"]
[]
[null,"Schulden ",{"$f":"C27","v":-150000},null,"Schulden ",{"$f":"F27","v":-150000}]
[null,"Zahlung an Frau",{"$f":"C55","v":675000},null,"Zahlung an Frau",{"$f":"F55","v":725000}]
[null,"Aufteilungsanteil Mann",{"$f":"C51","v":375000},null,"Aufteilungsanteil Mann",{"$f":"F51","v":325000}]
[null,"Vorwegbezug Mann",{"$f":"$C$36","v":0},null,"Vorwegbezug Mann",{"$f":"F36","v":0}]
[null,"Summe",{"$f":"C63*-1+C64+C65+C66","v":1200000},null,"Summe",{"$f":"F63*-1+F64+F65+F66","v":1200000}]
[]
[null,"Kontrollrechnung Frau:",null,null,"Kontrollrechnung Frau:"]
[]
[null,"Schulden ",{"$f":"C27","v":-150000},null,"Schulden ",{"$f":"F27","v":-150000}]
[null,"Zahlung an Mann",{"$f":"C59","v":375000},null,"Zahlung an Mann",{"$f":"F59","v":325000}]
[null,"Aufteilungsanteil Frau",{"$f":"C51","v":375000},null,"Aufteilungsanteil Frau",{"$f":"F51","v":325000}]
[null,"Vorwegbezug Frau",{"$f":"C37","v":300000},null,"Vorwegbezug Frau",{"$f":"F37","v":400000}]
[null,"Summe",{"$f":"C71*-1+C72+C73+C74","v":1200000},null,"Summe",{"$f":"F71*-1+F72+F73+F74","v":1200000}]
[]
[null,"Entscheidungen:"]
[]
[null,"mit Anklicken können die Entscheidungen im RIS aufgerufen werden"]
[]
[null,"OGH 25.06.2019, 1 Ob 97/19z"]
[null,"OGH 19.06.2018, 1 Ob 89/18x"]
[null,"OGH 30.04.2018, 1 Ob 64/18w"]
[null,"OGH 20.01.2020, 1 Ob 142/19t"]
[null,"OGH 23.03.2021, 1 Ob 6/21w (Wertminderung; gemeinsame Bewertung)"]
[null,"OGH 21.04.2021, 1 Ob 35/21k (Wertminderung)"]
[]
[null,"LG Wels 13.09.2019, 21 R 300/18v (getrennte Bewertung)"]
[]
[null,"Kennwort Aufhebung Sperre: gesperrt"]